bitfinex-derivatives/quotes_BTCF0:USTF0_20210706
["timestamp","ask_amount","ask_price","bid_price","bid_amount"]
[1625537160668,5.02625001,33753.0,33752.0,0.50054674]
[1625537161417,5.08325001,33753.0,33752.0,0.50054674]
[1625537162069,5.08325001,33753.0,33752.0,0.20008674]
[1625537166532,5.09879412,33753.0,33752.0,0.20008674]
[1625537166683,6.63534189,33753.0,33752.0,0.20008674]
[1625537172801,6.69434189,33753.0,33752.0,0.20008674]
[1625537191496,6.63734189,33753.0,33752.0,0.20008674]
[1625537194150,6.69434189,33753.0,33752.0,0.20008674]
[1625537198110,6.63734189,33753.0,33752.0,0.20008674]
[1625537198510,6.63734189,33753.0,33752.0,0.44066218]
[1625537198612,6.57834189,33753.0,33752.0,0.49966218]
[1625537199063,6.56279778,33753.0,33752.0,0.55866218]
[1625537199265,6.56279778,33753.0,33752.0,1.43543215]
[1625537199870,5.02625001,33753.0,33752.0,4.0654008]
[1625537206429,5.02625001,33753.0,33752.0,2.83806336]
[1625537214746,5.02625001,33753.0,33752.0,2.77906336]
[1625537215248,5.02625001,33753.0,33752.0,2.83806336]
[1625537215499,5.02625001,33753.0,33752.0,1.78605984]
[1625537220359,5.02625001,33753.0,33752.0,1.72705984]
[1625537221013,5.02625001,33753.0,33752.0,1.78605984]
[1625537226177,5.02625001,33753.0,33752.0,1.43501892]
[1625537226573,5.02625001,33753.0,33752.0,1.08472416]
[1625537230184,5.02625001,33753.0,33752.0,1.78530187]
[1625537231039,5.02625001,33753.0,33752.0,1.31700806]
[1625537231136,5.09879844,33753.0,33752.0,1.31700806]
[1625537231235,5.09879844,33753.0,33752.0,1.07643262]
[1625537231738,6.63262122,33753.0,33752.0,0.28765987]
[1625537232041,6.63262122,33753.0,33752.0,0.34665987]
[1625537232143,6.63262122,33753.0,33752.0,0.25908674]
[1625537232638,6.87319666,33753.0,33752.0,0.0625113]
[1625537233492,6.87319666,33753.0,33752.0,0.0035113]
[1625537233791,6.87319666,33753.0,33751.0,0.00351154]
[1625537234044,0.01554701,33752.0,33751.0,0.00351154]
[1625537234393,6.32561278,33752.0,33750.0,0.00351154]
[1625537234493,0.057,33751.0,33750.0,0.00351154]
[1625537234745,6.36720485,33751.0,33750.0,0.00351154]
[1625537235094,6.38275007,33751.0,33750.0,0.00351154]
[1625537235494,6.47265007,33751.0,33750.0,0.00351154]
[1625537235894,6.45710485,33751.0,33750.0,0.00351154]
[1625537239501,6.36720485,33751.0,33750.0,0.00351154]
[1625537239604,6.36720485,33751.0,33750.0,0.06251154]
[1625537239702,6.31020485,33751.0,33750.0,0.06251154]
[1625537239803,6.31020485,33751.0,33750.0,0.39415154]
[1625537240203,6.31020485,33751.0,33750.0,0.65688863]
[1625537240705,6.31020485,33751.0,33750.0,0.89746407]
[1625537241205,6.31020485,33751.0,33750.0,1.24778054]
[1625537241959,4.7753685,33751.0,33750.0,0.98504345]
[1625537242306,4.7753685,33751.0,33750.0,1.51053389]
[1625537242706,4.7753685,33751.0,33750.0,1.16021742]
[1625537243208,4.7753685,33751.0,33750.0,1.21921742]
[1625537243563,4.7753685,33751.0,33750.0,1.91984177]
[1625537248872,4.7753685,33751.0,33750.0,2.9709504]
[1625537254886,4.7753685,33751.0,33750.0,2.9119504]
[1625537255136,4.7753685,33751.0,33750.0,2.9709504]
[1625537255388,4.7753685,33751.0,33750.0,2.9119504]
[1625537255740,4.7753685,33751.0,33750.0,2.9709504]
[1625537256240,4.7753685,33751.0,33750.0,2.9119504]
[1625537256340,4.9220685,33751.0,33750.0,2.67137496]
[1625537256439,4.9220685,33751.0,33750.0,2.33973496]
[1625537256689,4.84791602,33751.0,33750.0,2.33973496]
[1625537256790,6.38324475,33751.0,33750.0,0.32537004]
[1625537257496,6.38324475,33751.0,33750.0,0.06251154]
[1625537257692,6.47074475,33751.0,33750.0,0.06251154]
[1625537257942,6.45519723,33751.0,33750.0,0.06251154]
[1625537258492,6.47074516,33751.0,33750.0,0.06251154]
[1625537259547,6.45519723,33751.0,33750.0,0.06251154]
[1625537259797,6.47074493,33751.0,33750.0,0.06251154]
[1625537262005,6.45519723,33751.0,33750.0,0.06251154]
[1625537262407,6.45519723,33751.0,33750.0,0.15012025]
[1625537262657,6.36769723,33751.0,33750.0,0.15012025]
[1625537264612,6.45609723,33751.0,33750.0,0.15012025]
[1625537264714,6.36769723,33751.0,33750.0,0.15012025]
[1625537265716,6.45709723,33751.0,33750.0,0.15012025]
[1625537266769,6.4726451,33751.0,33750.0,0.15012025]
[1625537267420,6.4726451,33751.0,33750.0,0.06251154]
[1625537280963,7.19437142,33751.0,33750.0,0.06251154]
[1625537290981,7.19437142,33751.0,33750.0,0.30308698]
[1625537295594,7.19437142,33751.0,33750.0,0.60864698]
[1625537295892,6.86439598,33751.0,33750.0,0.60864698]
[1625537295991,6.3262451,33751.0,33750.0,0.60864698]
[1625537296796,4.79091637,33751.0,33750.0,1.83528193]
[1625537296995,4.79091637,33751.0,33750.0,2.07585737]
[1625537297450,4.7753685,33751.0,33750.0,2.07585737]
[1625537297549,4.7753685,33751.0,33750.0,3.12722448]
[1625537302567,4.7753685,33751.0,33750.0,2.07585737]
[1625537303020,6.31321181,33751.0,33750.0,1.37492311]
[1625537303522,6.31321181,33751.0,33750.0,1.72534421]
[1625537303972,6.31321181,33751.0,33750.0,1.37492311]
[1625537304070,6.31321181,33751.0,33750.0,1.06936311]
[1625537304321,4.7753685,33751.0,33750.0,1.06936311]
[1625537304423,5.0273985,33751.0,33750.0,1.06936311]
[1625537305723,6.56498787,33751.0,33750.0,1.06931921]
[1625537306278,6.56498787,33751.0,33750.0,0.80649277]
[1625537306774,6.56498787,33751.0,33750.0,1.41980767]
[1625537308479,6.56498787,33751.0,33750.0,1.06934957]
[1625537309031,6.56498787,33751.0,33750.0,1.41981324]
[1625537312589,6.56498787,33751.0,33750.0,1.06939908]
[1625537314047,6.56498787,33751.0,33750.0,1.41993336]
[1625537314394,6.56498787,33751.0,33750.0,1.06946969]
[1625537315446,6.56498787,33751.0,33750.0,1.42005451]
[1625537316149,6.56498787,33751.0,33750.0,1.06946969]
[1625537318454,6.58054973,33751.0,33750.0,1.06946969]
[1625537318555,6.58054973,33751.0,33750.0,1.4201]
[1625537318904,6.58054973,33751.0,33750.0,1.06960544]
[1625537319205,6.58054973,33751.0,33750.0,1.42022816]
[1625537319507,6.56498787,33751.0,33750.0,1.42022816]
[1625537320556,6.58054973,33751.0,33750.0,1.42022816]
[1625537320808,6.58054973,33751.0,33750.0,1.06959785]
[1625537321710,6.58054973,33751.0,33750.0,1.42021804]
[1625537322816,6.58054973,33751.0,33750.0,1.72069804]
[1625537323318,6.58054973,33751.0,33750.0,1.37007785]
[1625537324469,6.58054973,33751.0,33750.0,2.07130744]
[1625537324569,6.56498787,33751.0,33750.0,2.07130744]
[1625537324670,6.31295787,33751.0,33750.0,2.07130744]
[1625537325471,4.7753685,33751.0,33750.0,3.12310456]
[1625537326775,3.41105058,33751.0,33750.0,5.75222016]
[1625537326877,3.41105058,33751.0,33750.0,10.05182016]
[1625537327477,3.41105058,33751.0,33750.0,10.11082016]
[1625537327575,3.17095058,33751.0,33750.0,10.11082016]
[1625537328276,2.67045058,33751.0,33750.0,10.11082016]
[1625537328376,0.51172579,33751.0,33750.0,10.12254093]
[1625537328475,0.45272579,33751.0,33750.0,10.06354093]
[1625537328577,0.98215245,33752.0,33750.0,10.06354093]
[1625537328775,0.98215245,33752.0,33751.0,0.01172006]
[1625537328875,0.98215245,33752.0,33751.0,0.07072006]
[1625537328976,1.03058319,33754.0,33751.0,0.12972006]
[1625537329077,0.53008319,33754.0,33751.0,0.13323066]
[1625537329176,0.53008319,33754.0,33753.0,0.24057544]
[1625537329276,0.02958319,33754.0,33753.0,0.29957544]
[1625537329377,0.02958319,33754.0,33753.0,1.70081157]
[1625537329578,1.37451399,33758.0,33753.0,1.71252863]
[1625537329678,1.37451399,33758.0,33754.0,0.01171581]
[1625537329781,1.37451399,33758.0,33754.0,0.12971581]
[1625537329877,1.37451399,33758.0,33754.0,0.13322588]
[1625537329984,1.7868822,33761.0,33757.0,1.40105438]
[1625537329985,0.24057544,33761.0,33757.0,1.40105438]
[1625537330080,0.24057544,33761.0,33757.0,1.78981438]
[1625537330180,0.24057544,33761.0,33757.0,1.84881438]
[1625537330380,0.24057544,33761.0,33760.0,1.39905632]
[1625537330481,0.24057544,33761.0,33760.0,1.45805632]
[1625537330580,0.24057544,33761.0,33760.0,1.51705632]
[1625537330680,0.75752973,33761.0,33760.0,1.51705632]
[1625537330931,0.75752973,33761.0,33760.0,1.52056609]
[1625537331232,0.34457879,33761.0,33760.0,5.75381697]
[1625537331631,0.51695391,33761.0,33760.0,5.75381697]
[1625537332485,0.08618748,33761.0,33760.0,5.75381697]
[1625537332983,0.10212421,33762.0,33760.0,5.75381697]
[1625537333085,0.08620818,33762.0,33760.0,5.75381697]
[1625537333233,0.08620818,33762.0,33761.0,0.24057544]
[1625537333334,0.08620818,33762.0,33761.0,0.36208485]
[1625537333533,0.9283,33766.0,33761.0,1.75947114]
[1625537333534,1.27283482,33766.0,33761.0,1.75947114]
[1625537333835,1.27283482,33766.0,33762.0,0.00350923]
[1625537333934,1.27283482,33766.0,33764.0,1.39736352]
[1625537334033,1.27283482,33766.0,33764.0,1.78174352]
[1625537334134,1.27283482,33766.0,33764.0,1.84074352]
[1625537334384,1.27283482,33766.0,33765.0,0.00350918]
[1625537334486,0.9283,33766.0,33765.0,0.12150918]
[1625537335289,0.9283,33766.0,33765.0,0.60266006]
[1625537335487,0.7456,33766.0,33765.0,0.60266006]
[1625537335589,0.3816,33766.0,33765.0,0.60266006]
[1625537337342,0.3816,33766.0,33765.0,0.59915088]
[1625537338493,4.071,33766.0,33765.0,0.59915088]
[1625537338593,4.071,33766.0,33765.0,0.54015088]
[1625537338695,4.071,33766.0,33765.0,0.48115088]
[1625537339345,4.41401369,33766.0,33765.0,0.48115088]
[1625537339848,4.63652369,33766.0,33765.0,0.48115088]
[1625537339949,4.75252369,33766.0,33765.0,0.48115088]
[1625537340400,4.75252369,33766.0,33765.0,0.54015088]
[1625537340502,4.40951,33766.0,33765.0,0.48115088]
[1625537340701,4.29351,33766.0,33765.0,0.48115088]
[1625537341002,4.35051,33766.0,33765.0,0.48115088]
[1625537341303,4.59108544,33766.0,33765.0,0.48115088]
[1625537341405,4.65008544,33766.0,33765.0,0.48115088]
[1625537341508,4.70908544,33766.0,33765.0,0.48115088]
[1625537342207,6.07551617,33766.0,33765.0,0.48115088]
[1625537342307,6.01651617,33766.0,33765.0,0.48115088]
[1625537342958,5.95751617,33766.0,33765.0,0.48115088]
[1625537343058,6.07551617,33766.0,33765.0,0.48115088]
[1625537346169,5.69391617,33766.0,33765.0,0.48115088]
[1625537346971,5.63491617,33766.0,33765.0,0.48115088]
[1625537347273,5.69391617,33766.0,33765.0,0.48115088]
[1625537348625,6.88765047,33766.0,33765.0,0.48115088]
[1625537352034,6.82865047,33766.0,33765.0,0.48115088]
[1625537357640,5.46221974,33766.0,33765.0,0.48115088]
[1625537357740,5.23970974,33766.0,33765.0,0.48115088]
[1625537358139,6.6060841,33766.0,33765.0,0.48115088]
[1625537358390,6.6650841,33766.0,33765.0,0.48115088]
[1625537358591,5.29870974,33766.0,33765.0,0.48115088]
[1625537359395,6.66505947,33766.0,33765.0,0.48115088]
[1625537359743,7.68984384,33766.0,33765.0,0.48115088]
[1625537360594,6.32349411,33766.0,33765.0,0.48115088]
[1625537360947,7.68985373,33766.0,33765.0,0.48115088]
[1625537361848,7.63085373,33766.0,33765.0,0.48115088]
[1625537362248,7.57185373,33766.0,33765.0,0.48115088]
[1625537362647,6.20549411,33766.0,33765.0,0.48115088]
[1625537365606,6.20549411,33766.0,33765.0,0.48466104]
[1625537366357,6.14849411,33766.0,33765.0,0.48466104]
[1625537366557,2.45909411,33766.0,33765.0,0.48466104]
[1625537367661,2.51809411,33766.0,33765.0,0.48466104]
[1625537368063,2.57509411,33766.0,33765.0,0.48466104]
[1625537369317,2.59063704,33766.0,33765.0,0.48466104]
[1625537370818,2.53163704,33766.0,33765.0,0.48466104]
[1625537370918,2.47463704,33766.0,33765.0,0.48466104]
[1625537371723,2.53163704,33766.0,33765.0,0.48466104]
[1625537372321,2.47463704,33766.0,33765.0,0.48466104]
[1625537373023,2.45909411,33766.0,33765.0,0.48466104]
[1625537373223,2.51609411,33766.0,33765.0,0.48466104]
[1625537373323,2.5316209,33766.0,33765.0,0.48466104]
[1625537373526,1.3378866,33766.0,33765.0,0.48466104]
[1625537374026,2.53190741,33766.0,33765.0,0.48466104]
[1625537374328,2.47490741,33766.0,33765.0,0.48466104]
[1625537374679,2.45938062,33766.0,33765.0,0.48466104]
[1625537375229,2.47490684,33766.0,33765.0,0.48466104]
[1625537375480,2.45938062,33766.0,33765.0,0.48466104]
[1625537375932,2.51638062,33766.0,33765.0,0.48466104]
[1625537376032,2.53190696,33766.0,33765.0,0.48466104]
[1625537377136,2.51638062,33766.0,33765.0,0.48466104]
[1625537377638,2.53190691,33766.0,33765.0,0.48466104]
[1625537378491,3.89907638,33766.0,33765.0,0.48466104]
[1625537381550,3.88355009,33766.0,33765.0,0.48466104]
[1625537381650,3.88355009,33766.0,33765.0,0.54366104]
[1625537381851,3.88355009,33766.0,33765.0,0.48466104]
[1625537382054,3.88355009,33766.0,33765.0,0.54366104]
[1625537382151,3.88355009,33766.0,33765.0,0.48466104]
[1625537382954,3.88355009,33766.0,33765.0,0.54366104]
[1625537383154,3.88355009,33766.0,33765.0,0.48466104]
[1625537383953,3.88355009,33766.0,33765.0,0.54366104]
[1625537384154,3.88355009,33766.0,33765.0,0.48466104]
[1625537384455,3.88355009,33766.0,33765.0,0.54366104]
[1625537384656,3.88355009,33766.0,33765.0,0.89332958]
[1625537384758,3.58597465,33766.0,33765.0,0.95232958]
[1625537385161,3.58597465,33766.0,33765.0,1.65162278]
[1625537385162,1.02478437,33766.0,33765.0,1.65162278]
[1625537385659,1.20144395,33767.0,33765.0,1.65162278]
[1625537385660,0.34365659,33767.0,33765.0,4.51364583]
[1625537386161,0.34387562,33769.0,33766.0,3.67343506]
[1625537386262,0.34387562,33769.0,33766.0,3.73243506]
[1625537386360,0.34387562,33769.0,33767.0,5.0537]
[1625537386461,0.34387562,33769.0,33767.0,5.11620904]
[1625537386562,0.34408799,33768.0,33767.0,5.17520904]
[1625537386710,0.34408799,33768.0,33767.0,5.1717]
[1625537386962,0.34408799,33768.0,33767.0,5.17520907]
[1625537387061,0.34408799,33768.0,33767.0,8.84716454]
[1625537388464,0.66830854,33769.0,33767.0,9.54646836]
[1625537388816,0.66830854,33769.0,33768.0,0.00350902]
[1625537388916,1.03177877,33771.0,33768.0,3.73382499]
[1625537389014,1.03177877,33771.0,33768.0,3.79282499]
[1625537389368,1.03165499,33772.0,33770.0,2.27194318]
[1625537389464,1.03165499,33772.0,33770.0,2.72797318]
[1625537389669,1.03165499,33772.0,33771.0,1.53323385]
[1625537389767,1.03165499,33772.0,33771.0,1.65123385]
[1625537389870,1.03165499,33772.0,33771.0,1.59223385]
[1625537389972,1.08865499,33772.0,33771.0,1.59223385]
[1625537390071,2.29174978,33772.0,33771.0,0.54365983]
[1625537390620,2.29174978,33772.0,33771.0,0.48465983]
[1625537390724,2.35074978,33772.0,33771.0,0.48465983]
[1625537391020,3.72431545,33772.0,33771.0,0.48465983]
[1625537391270,3.72431545,33772.0,33771.0,0.48115088]
[1625537391371,3.78331545,33772.0,33771.0,0.48115088]
[1625537391672,4.02389089,33772.0,33771.0,0.48115088]
[1625537392073,5.56883077,33772.0,33771.0,0.48115088]
[1625537392327,5.50983077,33772.0,33771.0,0.48115088]
[1625537392579,5.56883077,33772.0,33771.0,0.48115088]
[1625537395181,5.45083077,33772.0,33771.0,0.48115088]
[1625537395281,5.45083077,33772.0,33771.0,0.4846604]
[1625537395483,3.90589089,33772.0,33771.0,0.4846604]
[1625537398641,3.90589089,33772.0,33771.0,0.5436604]
[1625537398739,3.90589089,33772.0,33771.0,0.8807404]
[1625537399240,3.90589089,33772.0,33771.0,0.8217404]
[1625537399490,3.96489089,33772.0,33771.0,0.8217404]
[1625537401347,3.96489089,33772.0,33771.0,0.4846604]
[1625537401696,3.96489089,33772.0,33771.0,0.48115088]
[1625537401946,3.96489089,33772.0,33771.0,0.48466033]
[1625537402295,3.90589089,33772.0,33771.0,0.48466033]
[1625537403700,3.96489089,33772.0,33771.0,0.48466033]
[1625537403801,4.20048089,33772.0,33771.0,0.00350945]
[1625537404102,4.20048089,33772.0,33769.0,0.00350974]
[1625537404203,0.089,33771.0,33769.0,0.00350974]
[1625537404305,0.148,33771.0,33769.0,0.00350974]
[1625537404401,0.057,33770.0,33768.0,1.04894471]
[1625537404502,0.057,33770.0,33762.0,0.96219112]
[1625537404503,0.116,33770.0,33762.0,0.96219112]
[1625537404602,0.1905098,33770.0,33762.0,0.96219112]
[1625537404904,0.175,33770.0,33763.0,0.00351022]
[1625537405005,0.057,33765.0,33763.0,0.00351022]
[1625537405103,0.27756,33765.0,33763.0,0.00351022]
[1625537405202,0.33656,33765.0,33763.0,0.00351022]
[1625537405404,2.55846212,33764.0,33758.0,0.00351025]
[1625537405503,2.61746212,33764.0,33758.0,0.00351025]
[1625537405605,0.057,33759.0,33758.0,0.00351025]
[1625537405704,0.29757544,33759.0,33758.0,0.24408569]
[1625537405854,1.49113536,33759.0,33758.0,0.24408569]
[1625537405953,1.49113536,33759.0,33758.0,0.24057544]
[1625537406255,1.49113536,33759.0,33758.0,0.2440859]
[1625537408559,1.55013536,33759.0,33758.0,0.2440859]
[1625537409064,2.91449918,33759.0,33758.0,0.2440859]
[1625537411368,2.91449918,33759.0,33758.0,0.24057544]
[1625537413824,2.91449918,33759.0,33752.0,1.46428165]
[1625537414129,0.057,33754.0,33752.0,0.24057544]
[1625537414324,0.116,33754.0,33752.0,0.24057544]
[1625537414627,1.25145803,33753.0,33752.0,0.24057544]
[1625537414731,1.31045803,33753.0,33752.0,0.24057544]
[1625537415831,1.55103347,33753.0,33752.0,0.24057544]
[1625537417939,1.75911347,33753.0,33752.0,0.24057544]
[1625537418942,2.27121027,33753.0,33752.0,0.24057544]
[1625537419948,1.07675224,33753.0,33752.0,0.24057544]
[1625537420446,2.27169126,33753.0,33752.0,0.24057544]
[1625537422000,1.07675224,33753.0,33752.0,0.24057544]
[1625537422404,2.27109659,33753.0,33752.0,0.24057544]
[1625537425565,2.33009659,33753.0,33752.0,0.24057544]
[1625537430015,2.33009659,33753.0,33752.0,0.24408679]
[1625537431866,2.33009659,33753.0,33752.0,0.24057544]
[1625537432168,3.69784289,33753.0,33752.0,0.24057544]
[1625537433269,3.69784289,33753.0,33748.0,0.24057544]
[1625537433570,3.69784289,33753.0,33749.0,0.00351148]
[1625537433672,1.19682711,33751.0,33749.0,0.00351148]
[1625537433770,0.057,33750.0,33749.0,0.00351148]
[1625537433973,3.9997,33750.0,33749.0,0.00351148]
[1625537434073,4.24027544,33750.0,33749.0,0.00351148]
[1625537434172,4.75319159,33750.0,33749.0,0.00351148]
[1625537434672,5.77890999,33750.0,33749.0,0.00351148]
[1625537434772,5.92780999,33750.0,33749.0,0.00351148]
[1625537435174,7.12420522,33750.0,33749.0,0.00351148]
[1625537435926,7.12420522,33750.0,33744.0,0.00351167]
[1625537436025,7.12420522,33750.0,33744.0,0.06251167]
[1625537436127,0.50758544,33745.0,33744.0,0.06251167]
[1625537436227,0.56658544,33745.0,33744.0,0.06251167]
[1625537437028,1.07952537,33745.0,33744.0,0.06251167]
[1625537438235,0.56658544,33745.0,33744.0,0.06251167]
[1625537439088,1.07921169,33745.0,33744.0,0.06251167]
[1625537439789,0.56658544,33745.0,33744.0,0.06251167]
[1625537440590,1.07902462,33745.0,33744.0,0.06251167]
[1625537442446,0.50758544,33745.0,33744.0,0.06251167]
[1625537442595,0.56658544,33745.0,33744.0,0.06251167]
[1625537447204,0.56658544,33745.0,33743.0,0.12308711]
[1625537447304,0.62558544,33745.0,33743.0,0.11008711]
[1625537447806,0.5121191,33744.0,33743.0,0.11008711]
[1625537447907,0.6281191,33744.0,33743.0,0.11008711]
[1625537448105,0.6281191,33744.0,33737.0,0.76292668]
[1625537448207,0.48115088,33738.0,33737.0,0.76292668]
[1625537448307,0.75260088,33738.0,33737.0,0.82192668]
[1625537448608,0.75260088,33738.0,33737.0,0.30308781]
[1625537448712,0.69560088,33738.0,33737.0,0.30308781]
[1625537449207,5.87640088,33738.0,33737.0,0.30308781]
[1625537451262,0.69560088,33738.0,33737.0,0.30308781]
[1625537452213,0.69560088,33738.0,33737.0,0.24408781]
[1625537452312,0.75460088,33738.0,33737.0,0.24408781]
[1625537452665,0.81360088,33738.0,33737.0,0.24408781]
[1625537452767,0.75460088,33738.0,33737.0,0.24408781]
[1625537452867,0.81360088,33738.0,33737.0,0.24408781]
[1625537453017,0.75460088,33738.0,33737.0,0.24408781]
[1625537453217,0.69560088,33738.0,33737.0,0.24408781]
[1625537453418,0.75460088,33738.0,33737.0,0.24408781]
[1625537454717,0.81360088,33738.0,33737.0,0.24408781]
[1625537458229,0.87060088,33738.0,33737.0,0.24408781]
[1625537459891,2.06645001,33738.0,33737.0,0.24408781]
[1625537459990,2.06645001,33738.0,33737.0,0.00351237]
[1625537460291,2.30702545,33738.0,33737.0,0.00351237]
[1625537460491,2.30702545,33738.0,33734.0,0.00351303]
[1625537460692,2.30702545,33738.0,33737.0,0.00351308]
[1625537460793,4.52556239,33738.0,33737.0,0.00351308]
[1625537460991,4.52556239,33738.0,33735.0,0.00351299]
[1625537461241,4.52556239,33738.0,33731.0,0.00351299]
[1625537461542,1.19482944,33734.0,33731.0,0.00351299]
[1625537461642,0.057,33733.0,33731.0,0.00351299]
[1625537461742,0.175,33733.0,33731.0,0.00351299]
[1625537461991,0.62803295,33733.0,33731.0,0.00351299]
[1625537462293,0.48115088,33732.0,33731.0,0.00351299]
[1625537462494,0.54015088,33732.0,33731.0,0.00351299]
[1625537463295,0.54015088,33732.0,33730.0,0.76407536]
[1625537463796,0.54015088,33732.0,33731.0,0.52380489]
[1625537464096,0.54015088,33732.0,33731.0,1.22220984]
[1625537465148,0.54015088,33732.0,33731.0,0.52380489]
[1625537466155,0.59915088,33732.0,33731.0,0.52380489]
[1625537466252,0.59915088,33732.0,33731.0,1.22221695]
[1625537466751,0.59915088,33732.0,33731.0,0.52380489]
[1625537467755,0.54015088,33732.0,33731.0,0.52380489]
[1625537468256,0.59915088,33732.0,33731.0,0.52380489]
[1625537468355,0.54015088,33732.0,33731.0,0.52380489]
[1625537468556,0.48115088,33732.0,33731.0,0.72845489]
[1625537468657,0.48115088,33732.0,33731.0,1.42687512]
[1625537468756,0.51257581,33733.0,33731.0,1.42687512]
[1625537469110,0.51369294,33735.0,33732.0,2.27290742]
[1625537469208,0.57269294,33735.0,33732.0,2.27290742]
[1625537469360,0.57269294,33735.0,33733.0,0.0035128]
[1625537469612,0.059,33735.0,33734.0,0.52369702]
[1625537469912,0.57301639,33735.0,33734.0,0.52720982]
[1625537470462,0.57301639,33735.0,33734.0,0.76778526]
[1625537471769,0.51401639,33735.0,33734.0,0.76778526]
[1625537471870,0.51401639,33735.0,33734.0,0.82678526]
[1625537471967,0.51401639,33735.0,33734.0,0.88578526]
[1625537472270,0.9486,33738.0,33734.0,3.85469178]
[1625537472271,1.4632374,33738.0,33734.0,3.85469178]
[1625537472469,1.4632374,33738.0,33737.0,0.48115088]
[1625537472569,1.4632374,33738.0,33737.0,0.54015088]
[1625537472670,1.4632374,33738.0,33737.0,0.59915088]
[1625537472772,0.9486,33738.0,33737.0,4.09193441]
[1625537472872,0.9486,33738.0,33737.0,4.09544675]
[1625537473071,0.9486,33738.0,33737.0,2.87297252]
[1625537473873,0.9486,33738.0,33737.0,5.49321132]
[1625537473973,0.9486,33738.0,33737.0,5.43421132]
[1625537474326,0.9486,33738.0,33737.0,5.49321132]
[1625537474523,0.9486,33738.0,33737.0,5.43421132]
[1625537474778,0.9486,33738.0,33737.0,5.49321132]
[1625537478732,0.9486,33738.0,33737.0,9.47311132]
[1625537478831,0.9486,33738.0,33737.0,11.04585641]
[1625537479181,0.9486,33738.0,33737.0,11.05755928]
[1625537479282,0.9486,33738.0,33737.0,11.04585641]
[1625537479531,0.9486,33738.0,33737.0,9.47311132]
[1625537486800,0.9486,33738.0,33737.0,9.48482211]
[1625537487302,0.9486,33738.0,33737.0,11.05858815]
[1625537487803,0.9486,33738.0,33737.0,11.04687736]
[1625537488102,0.9486,33738.0,33737.0,9.47311132]
[1625537489856,0.9486,33738.0,33737.0,11.04740762]
[1625537489957,0.9486,33738.0,33737.0,11.05912219]
[1625537496117,0.9486,33738.0,33737.0,11.04740762]
[1625537496219,0.9486,33738.0,33737.0,11.05911929]
[1625537500374,0.9486,33738.0,33737.0,11.06789911]
[1625537500473,0.9486,33738.0,33737.0,11.32352911]
[1625537502328,0.9486,33738.0,33737.0,11.31181744]
[1625537502978,0.9486,33738.0,33737.0,9.73752114]
[1625537503628,0.9486,33738.0,33737.0,9.74922978]
[1625537503781,0.9486,33738.0,33737.0,11.31169429]
[1625537503982,0.9486,33738.0,33737.0,7.33179429]
[1625537504081,1.0056,33738.0,33737.0,7.26401447]
[1625537504182,1.29645,33738.0,33737.0,5.43421132]
[1625537504384,1.23945,33738.0,33737.0,5.43421132]
[1625537504484,1.29645,33738.0,33737.0,5.43421132]
[1625537504684,2.50709613,33738.0,33737.0,5.43421132]
[1625537505234,1.81532304,33738.0,33737.0,5.43421132]
[1625537505634,1.81532304,33738.0,33737.0,4.03675063]
[1625537505635,2.50726131,33738.0,33737.0,4.03675063]
[1625537505985,1.81532304,33738.0,33737.0,5.43617197]
[1625537506187,1.81532304,33738.0,33737.0,5.49517197]
[1625537506286,1.81532304,33738.0,33737.0,5.43617197]
[1625537506385,2.50716355,33738.0,33737.0,4.03675063]
[1625537506888,2.45016355,33738.0,33737.0,4.03675063]
[1625537507538,2.50716355,33738.0,33737.0,4.03675063]
[1625537507888,2.50716355,33738.0,33737.0,3.97775063]
[1625537508089,2.56616355,33738.0,33737.0,3.97775063]
[1625537508391,3.60318856,33738.0,33737.0,2.75497252]
[1625537508740,4.8129012,33738.0,33737.0,2.75497252]
[1625537509145,4.8129012,33738.0,33737.0,1.70713746]
[1625537512452,4.9011012,33738.0,33737.0,1.70713746]
[1625537512852,4.8129012,33738.0,33737.0,1.70713746]
[1625537513103,6.19470614,33738.0,33737.0,1.00858075]
[1625537513401,6.19470614,33738.0,33737.0,1.35846004]
[1625537513953,6.28370614,33738.0,33737.0,1.35846004]
[1625537514155,6.28370614,33738.0,33737.0,0.87730916]
[1625537514254,6.34270614,33738.0,33737.0,0.86640916]
[1625537514355,6.34270614,33738.0,33737.0,0.80790916]
[1625537514708,6.34270614,33738.0,33737.0,0.61578779]
[1625537514909,6.82385702,33738.0,33737.0,0.61578779]
[1625537515307,6.82385702,33738.0,33737.0,0.55928779]
[1625537515409,6.82385702,33738.0,33733.0,0.08747367]
[1625537515410,8.37618338,33738.0,33733.0,0.08747367]
[1625537515907,8.37618338,33738.0,33734.0,0.00351324]
[1625537516163,1.55249109,33736.0,33734.0,0.00351324]
[1625537516260,0.1456,33735.0,33734.0,0.00351324]
[1625537516358,0.2636,33735.0,33734.0,0.00351324]
[1625537516458,0.2636,33735.0,33733.0,0.00351322]
[1625537516658,4.57515201,33735.0,33733.0,0.00351322]
[1625537516908,0.24057544,33734.0,33733.0,0.00351322]
[1625537517008,0.41557544,33734.0,33733.0,0.00351322]
[1625537517158,4.72732834,33734.0,33733.0,0.00351322]
[1625537519362,4.72732834,33734.0,33732.0,0.08747184]
[1625537519514,4.72732834,33734.0,33731.0,0.26227034]
[1625537519967,4.72732834,33734.0,33732.0,0.00351319]
[1625537520067,1.43791822,33733.0,33732.0,0.00351319]
[1625537520167,1.49691822,33733.0,33732.0,0.00351319]
[1625537520267,1.55591822,33733.0,33732.0,0.00351319]
[1625537520569,4.49076667,33733.0,33732.0,0.09093484]
[1625537522269,4.43176667,33733.0,33732.0,0.09093484]
[1625537522419,4.49076667,33733.0,33732.0,0.09093484]
[1625537522621,4.49076667,33733.0,33732.0,0.08742165]
[1625537522719,4.43176667,33733.0,33732.0,0.08742165]
[1625537522971,4.43176667,33733.0,33731.0,0.26227326]
[1625537523069,4.49076667,33733.0,33731.0,0.26227326]
[1625537523422,3.10984845,33733.0,33732.0,0.00351334]
[1625537523521,0.175,33733.0,33732.0,0.21941334]
[1625537523621,0.116,33733.0,33732.0,0.21941334]
[1625537523872,1.8411968,33733.0,33732.0,0.21941334]
[1625537524273,0.80611322,33733.0,33732.0,1.96763153]
[1625537524372,0.80611322,33733.0,33732.0,2.02663153]
[1625537524521,0.80611322,33733.0,33732.0,1.96763153]
[1625537524674,0.80611322,33733.0,33732.0,2.02663153]
[1625537524777,0.74711322,33733.0,33732.0,2.02663153]
[1625537524873,0.69011322,33733.0,33732.0,2.02663153]
[1625537524977,0.74711322,33733.0,33732.0,2.02663153]
[1625537525075,0.74711322,33733.0,33732.0,2.26720697]
[1625537525176,0.057,33733.0,33732.0,2.26720697]
[1625537525273,0.116,33733.0,33732.0,2.26720697]
[1625537525374,0.057,33733.0,33732.0,2.26720697]
[1625537525524,0.9308274,33734.0,33732.0,2.26720697]
[1625537525625,0.9898274,33734.0,33732.0,2.26720697]
[1625537525775,0.9898274,33734.0,33733.0,0.003513]
[1625537525875,0.9898274,33734.0,33733.0,0.062513]
[1625537525974,1.0468274,33734.0,33733.0,0.003513]
[1625537526076,1.0468274,33734.0,33733.0,1.75165022]